Workbook

Sheet 1. Unternehmensdaten
A1: Eingabeblatt für Unternehmensdaten
A3: Name des Unternehmens
A5: Unternehmensstandort
A7: Art des Unternehmens
A9: Gesamt-Umsatz in EUR/Jahr
A11: Anzahl Mitarbeiter gesamt | C11: Anzahl
A12: davon Mitarbeiter > 25 Jahre im Unternehmen (6 Wochen Urlaub) | C12: Anzahl
A13: Anzahl der Mitarbeiter > 25 Jahre im Unternehmen in % | B13: =IF(ISERROR(B12/B11),"",B12/B11) ->  | C13: in %
A14: Unternehmensindividueller %-Aufschlag für NLZ | B14: =IF(ISERROR('1. Übersicht LZ_NLZ'!F28*(1-'1. Unternehmensdaten'!B13)+'1. Übersicht LZ_NLZ'!H28*'1. Unternehmensdaten'!B13),"",'1. Übersicht LZ_NLZ'!F28*(1-'1. Unternehmensdaten'!B13)+'1. Übersicht LZ_NLZ'!H28*'1. Unternehmensdaten'!B13) -> 
A16: Anzahl Mitarbeiter in Abfertigung ALT | C16: Anzahl
A17: Individueller % Aufschlag für Abfertigungsvorsorge | B17: =IF(ISERROR((B16/B11)*'1. Österreichische Werte'!F63+(('1. Unternehmensdaten'!B11-'1. Unternehmensdaten'!B16)/'1. Unternehmensdaten'!B11)*1.53%),"",(B16/B11)*'1. Österreichische Werte'!F63+(('1. Unternehmensdaten'!B11-'1. Unternehmensdaten'!B16)/'1. Unternehmensdaten'!B11)*1.53%) -> 
A19: Feiertage | B19: langjähriger Durchschnitt
A21: Kostenstruktur (Kosten jeweils PRO JAHR)
A22: Aufwendungen für Material und sonstige bezogene Leistungen
A23: Materialkosten | C23: =IF(ISERROR(B23/$B$32),"Lohnsumme fehlt!",B23/$B$32) -> Lohnsumme fehlt!
A24: Maschinen & Geräte (inkl. AFA, Reparaturaufwand, GeWiGü) | C24: =IF(ISERROR(B24/$B$32),"Lohnsumme fehlt!",B24/$B$32) -> Lohnsumme fehlt!
A26: Präventivdienste (SFK, AM) | D26: =IF(ISBLANK(B26),"",IF(AND(B11>=50,B26<('1. Österreichische Werte'!G39/2)),"ACHTUNG: Wert überprüfen!",IF(AND(B11<50,B26<('1. Österreichische Werte'!G39/4)),"ACHTUNG: Wert überprüfen!",""))) -> 
A27: Kosten für Persönliche Schutzausrüstung (PSA)
A28: Kosten für Arbeitskleidung
A29: Kosten für Arbeitnehmerschutz (SFK, AM, PSA) in % von Bruttolohn | B29: =IF(OR(B26=0,B26=""),IF(B11>=50,'1. Österreichische Werte'!G39,'1. Österreichische Werte'!G39/2),B26)+B27+B28 -> 0 | C29: =IF(ISERROR(B29/B32),"Lohnsumme fehlt!",B29/B32) -> Lohnsumme fehlt!
A31: Personalaufwand
A32: Brutto Lohnsumme (Leistungs- und Nichtleistungslöhne) | C32: in % vom Lohn
A33: Kranklöhne | C33: =IF(ISERROR(B33/$B$32),"Lohnsumme fehlt!",B33/$B$32) -> Lohnsumme fehlt!
A34: Krankenstand in Tagen (tatsächlicher kalkulatorischer Wert) | B34: =IF(ISERROR(('1. Übersicht LZ_NLZ'!E16*(1-'1. Unternehmensdaten'!B13)+'1. Übersicht LZ_NLZ'!G16*'1. Unternehmensdaten'!B13)*C33),"Lohnsumme oder Anzahl Mitarbeiter fehlt!",('1. Übersicht LZ_NLZ'!E16*(1-'1. Unternehmensdaten'!B13)+'1. Übersicht LZ_NLZ'!G16*'1. Unternehmensdaten'!B13)*C33) -> Lohnsumme oder Anzahl Mitarbeiter fehlt!
A36: Krankenstandstage (Wert für Kalkulation) | C36: Tage | D36: =IF(ISBLANK(B36),"",IF(B36<7,"ACHTUNG: Wert überprüfen!","")) -> 
A37: Sonstige Arbeitsverhinderungen in Arbeitstagen | C37: Tage
A38: Sonstige Fehlzeiten und nicht verrechenbare Einsatzzeiten | C38: =IF(ISERROR(B38/$B$32),"Lohnsumme fehlt!",B38/$B$32) -> Lohnsumme fehlt!
A40: Auflösungsabgabenpflichtige Beendigungen von Dienstverhältnissen (DG-Kündigung, einvernehmliche Lösung des DV, Begründeter vorzeitiger Austritt aus dem DV) | C40: Anzahl pro Jahr
A41: Auflösungsabgabe in % (individueller Wert) | B41: =IF(ISERROR(B40*'1. Österreichische Werte'!B42/'1. Unternehmensdaten'!B32),"Lohnsumme fehlt!",B40*'1. Österreichische Werte'!B42/'1. Unternehmensdaten'!B32) -> Lohnsumme fehlt! | C41: in %
A43: Dienstgeberabgabe (U-Bahnsteuer; nur in Wien) | B43: =IF(B5="Wien",B11*'1. Österreichische Werte'!E27,0) -> 0 | C43: =IF(ISERROR(B43/B32),"Lohnsumme fehlt!",B43/B32) -> Lohnsumme fehlt!
A44: Benötigte einzustellende begünstigt Behinderte | B44: =ROUNDDOWN(IF(B11>=25,B11/25,0),0) -> 0 | C44: Anzahl
A45: davon eingestellt | C45: Anzahl
A46: Behindertenausgleichstaxe | B46: =IF(B45>B44,0,(B44-B45)*'1. Österreichische Werte'!F7) -> 0 | C46: =IF(ISERROR(IF(B45>B44,0,B46/B32)),"Lohnsumme fehlt!",IF(B45>B44,0,B46/B32)) -> Lohnsumme fehlt!
A48: Fahrtkostenersatz (Gesamtsumme in EUR) | C48: =IF(ISERROR(B48/$B$32),"Lohnsumme fehlt!",B48/$B$32) -> Lohnsumme fehlt!
A50: Kosten für Objektleiter (Bruttokosten inkl. Nebenkosten pro Jahr) | C50: =IF(ISERROR(B50/$B$32),"Lohnsumme fehlt!",B50/$B$32) -> Lohnsumme fehlt!
A52: Filialkosten
A53: Kosten für eine Filiale (Miete, Betriebskosen, Personal, Material, ..) | C53: =IF(ISERROR(B53/B32),"Lohnsumme fehlt!",B53/B32) -> Lohnsumme fehlt!
C55: in % vom Lohn
A56: Abschreibungen & Sonstigen Kosten/Gemeinkosten: | B56: =IF(ISBLANK(B57),SUM(B59:B77),B57) -> 0 | C56: =IF(ISERROR(B56/$B$32),"Lohnsumme fehlt!",B56/$B$32) -> Lohnsumme fehlt!
A57: Gesamteingabe aller Kosten:
A58: Detaileingabe:
A59: KfZ-Aufwand (Fuhrpark inkl. Finanzierungskosten, Leasing und Betrieb)
A60: Reise und Fahrtkosten (nicht Fahrtkostenersatz)
A61: Telekommunikation & EDV (Telefon, Internet, IT, …)
A62: Raummieten (Büro) inkl. Betriebskosten
A63: Mietaufwand für Maschinen und Geräte
A64: Leasingaufwand (nicht für Fuhrpark)
A65: Provisionen an Dritte, Vermittlungsgebühren, Honorare
A66: Büromaterial und Drucksorten
A67: Fachliteratur und Zeitungen
A68: Werbung und Repräsentation (Marketing, Vertrieb, …)
A69: Versicherungen und Schadensfälle (Prämien und Schadenszahlungen)
A70: Beratungs- und Prüfungsaufwand (Steuerberatung, WP, RA, Unternehmensberatung, …)
A71: Aus- und Weiterbildungskosten
A72: Mitgliedsbeiträge (Kammerumlage, sonstige Beiträge)
A73: Verwaltungskosten (Gehälter Innendienst, inkl. GF) - Bruttokosten inkl. Lohnnebenkosten
A74: Kosten für Vorabeiter
A75: Zinszahlungen
A76: Freiwilliger Sozialaufwand (zB Weihnachtsfeier, …)
A77: Sonstige Kosten des Unternehmens
A79: Risikoaufschlag (Unternehmerisches Wagnis in Prozent)
A80: Gewinnerwartung (in Prozent)
A84: Version 2.4
A85: Stand per 16.01.2018

Sheet 1. Kalkulation
A1: Kalkulation für Stundenverrechnungssätze für Denkmal-, Fassaden- und Gebäudereiniger | F1: EUR/Std pro Lohngruppe
F2: LG1 | G2: LG2 | H2: LG3 | I2: LG4 | J2: LG5 | K2: LG6 | L2: Freie LV | N2: LV = Lohnvereinbarung
A3: A | B3: Kollektivlohn | E3: 100.00% | F3: ='1. KV Daten DFG 2018'!C2 -> € 10.60 | G3: ='1. KV Daten DFG 2018'!C3 -> € 9.62 | H3: ='1. KV Daten DFG 2018'!C4 -> € 9.39 | I3: ='1. KV Daten DFG 2018'!C5 -> € 9.11 | J3: ='1. KV Daten DFG 2018'!C6 -> € 8.77 | K3: ='1. KV Daten DFG 2018'!C7 -> € 8.68
A4: B | B4: Nebenkosten für Nichtanwesenheitszeiten Feiertage, Urlaub, Krankenentgelt, sonstige Verhinderungen | E4: =IF(ISBLANK('1. Unternehmensdaten'!B12),'1. Übersicht LZ_NLZ'!F35,'1. Unternehmensdaten'!B14) -> 23.87% | F4: =F3*$E$4 -> € 2.53 | G4: € 2.30 | H4: € 2.24 | I4: € 2.17 | J4: € 2.09 | K4: € 2.07 | L4: 0
C6: Summe Pos. B | E6: =SUM(E4:E4) -> 23.87% | F6: € 2.53 | G6: € 2.30 | H6: € 2.24 | I6: € 2.17 | J6: € 2.09 | K6: € 2.07 | L6: 0
A8: C | B8: Sozialversicherungsabgaben und sonstige Sozialabgaben von A und B
B9: Pensionsversicherung | D9: ='1. Österreichische Werte'!B76 -> 12.55%
B10: Unfallversicherung | D10: ='1. Österreichische Werte'!B77 -> 1.30%
B11: Krankenversicherung | D11: ='1. Österreichische Werte'!B78 -> 3.78%
B12: Arbeitslosenversicherung und IESG Zuschlag | D12: ='1. Österreichische Werte'!B79+'1. Österreichische Werte'!B80 -> 3.35%
B13: Wohnbauförderung | D13: ='1. Österreichische Werte'!B81 -> 0.50%
B14: Sozialversicherungsbeiträge gesamt | D14: =SUM(D9:D13) -> 21.48%
B15: Dienstgeberbeitrag (DB) Familienlastenausgleichsfonds | D15: ='1. Österreichische Werte'!B83 -> 3.90%
B16: Dienstgeberzuschlag (DZ) | D16: =VLOOKUP('1. Unternehmensdaten'!B5,dezet,2,1) -> 
B17: Kommunalsteuer | D17: ='1. Österreichische Werte'!B85 -> 3.00%
B18: Summe Pos. C | D18: =SUM(D14:D17) -> 
A19: =D18 ->  | B19: von Summe A + B | E19: =F19/$F$3 ->  | F19: =(F3+F6)*$A$19 -> 
C21: Summe Pos. B + C | E21: =SUM(E6:E20) ->  | F21: =F3*$E$21 -> 
A23: D | B23: Sonderzahlungen
B24: Weihnachtsremuneration (WR) | D24: =1/12 -> 8.33%
B25: Urlaubszuschuss (UZ) | D25: =1/12 -> 8.33%
D26: =SUM(D24:D25) -> 16.67%
A27: =D26 -> 16.67% | B27: von Summe A + B | E27: =F27/$F$3 -> 20.65% | F27: =(F3+F4)*$A$27 -> € 2.19 | G27: € 1.99 | H27: € 1.94 | I27: € 1.88 | J27: € 1.81 | K27: € 1.79 | L27: 0
C29: Summe Pos. B + C + D | E29: =SUM(E21:E28) ->  | F29: =F3*$E$29 -> 
A31: E | B31: Sozialversicherungsabgaben und sonstige Sozialabgaben von D
B32: Pensionsversicherung | D32: ='1. Österreichische Werte'!B76 -> 12.55%
B33: Unfallversicherung | D33: ='1. Österreichische Werte'!B77 -> 1.30%
B34: Krankenversicherung | D34: ='1. Österreichische Werte'!B78 -> 3.78%
B35: Arbeitslosenversicherung und IESG Zuschlag | D35: ='1. Österreichische Werte'!B79+'1. Österreichische Werte'!B80 -> 3.35%
B36: Sozialabgaben | D36: =SUM(D32:D35) -> 20.98%
B37: Dienstgeberbeitrag (DB) Familienlastenausgleichsfonds | D37: ='1. Österreichische Werte'!B83 -> 3.90%
B38: Dienstgeberzuschlag (DZ) | D38: =D16 -> 
B39: Kommunalsteuer | D39: ='1. Österreichische Werte'!B85 -> 3.00%
B40: Summe Pos. E | D40: =SUM(D36:D39) -> 
A41: =D40 ->  | B41: von Summe D | E41: =F41/$F$3 ->  | F41: =F27*$A$41 -> 
C43: Summe Pos. B + C + D + E | E43: =SUM(E29:E42) ->  | F43: =F3*$E$43 -> 
A45: F | B45: Abfertigungsvorsorge
B46: Abfertigungsvorsorge alt und NEU | D46: =IF('1. Unternehmensdaten'!B17="",'1. Österreichische Werte'!B48,'1. Unternehmensdaten'!B17) -> 1.53%
A47: =D46 -> 1.53% | B47: von Summe A + B | E47: =F47/F3 -> 2.21% | F47: =(F3+F4+F27)*$A$47 -> € 0.23 | G47: € 0.21 | H47: € 0.21 | I47: € 0.20 | J47: € 0.19 | K47: € 0.19 | L47: 0
C49: Summe Pos. B + C + D + E + F | E49: =SUM(E43:E48) ->  | F49: =F3*$E$49 -> 
B51: Basis für Zuschläge | F51: =F49+F3 -> 
A53: G | B53: Sonstige lohnbezogene Abgaben und Kosten
B54: Fahrtkostenersatz DN | D54: =IF(OR(ISERROR(IF('1. Unternehmensdaten'!C48=0,'1. Statistische Daten'!H59,'1. Unternehmensdaten'!C48)),'1. Unternehmensdaten'!C48="Lohnsumme fehlt!"),'1. Statistische Daten'!H59,IF('1. Unternehmensdaten'!C48=0,'1. Statistische Daten'!H59,'1. Unternehmensdaten'!C48)) -> 
B55: Behindertenausgleichstaxe | D55: =IF(OR(ISERROR(IF('1. Unternehmensdaten'!B44='1. Unternehmensdaten'!B45,0,IF('1. Unternehmensdaten'!B11>25,'1. Unternehmensdaten'!C46,0))),'1. Unternehmensdaten'!C46="Lohnsumme fehlt!"),'1. Statistische Daten'!H60,IF('1. Unternehmensdaten'!B44='1. Unternehmensdaten'!B45,0,IF('1. Unternehmensdaten'!B11>25,'1. Unternehmensdaten'!C46,0))) -> 
B56: Dienstgeberabgabe Ubahnsteuer (nur in Wien) | D56: =IF(OR(ISERROR(IF('1. Unternehmensdaten'!B5="Wien",IF('1. Unternehmensdaten'!C43=0,'1. Statistische Daten'!H61,'1. Unternehmensdaten'!C43),0)),'1. Unternehmensdaten'!C43="Lohnsumme fehlt!"),'1. Statistische Daten'!H61,IF('1. Unternehmensdaten'!B5="Wien",IF('1. Unternehmensdaten'!C43=0,'1. Statistische Daten'!H61,'1. Unternehmensdaten'!C43),0)) -> 0.00%
B57: Auflösungsabgabe | D57: =IF(OR(ISERROR(IF('1. Unternehmensdaten'!B41=0,'1. Statistische Daten'!H62,'1. Unternehmensdaten'!B41)),'1. Unternehmensdaten'!B41="Lohnsumme fehlt!"),'1. Statistische Daten'!H62,IF('1. Unternehmensdaten'!B41=0,'1. Statistische Daten'!H62,'1. Unternehmensdaten'!B41)) -> 
B58: Kosten für Arbeitnehmerschutz (Präventivdienste und PSA) | D58: =IF(OR(ISERROR(IF('1. Unternehmensdaten'!C29=0,IF('1. Unternehmensdaten'!B11>=50,'1. Österreichische Werte'!H39,'1. Österreichische Werte'!H39/2),'1. Unternehmensdaten'!C29)),'1. Unternehmensdaten'!C29="Lohnsumme fehlt!"),IF('1. Unternehmensdaten'!B11>=50,'1. Statistische Daten'!H63,'1. Statistische Daten'!H63/2),IF('1. Unternehmensdaten'!C29=0,IF('1. Unternehmensdaten'!B11>=50,'1. Österreichische Werte'!H39,'1. Österreichische Werte'!H39/2),'1. Unternehmensdaten'!C29)) -> 
B59: Summe Pos. G | D59: =SUM(D54:D58) -> 
A60: =D59 ->  | B60: von Summe A + B (Lohnsumme) | E60: =F60/$F$3 ->  | F60: =$A$60*(F3+F4) -> 
C62: Summe Pos. B + C + D + E + F + G | E62: =SUM(E49:E61) ->  | F62: =F3*$E$62 -> 
B64: Personaleinstandskosten | C64: Aufschlag auf Lohngruppe | D64: =E62 ->  | F64: =F62+F3 -> 
A66: H | B66: Sonstige Kosten des Unternehmens
B67: Materialkosten (Roh-, Hilfs- und Betriebsstoffe) | D67: =IF(OR(ISERROR(IF('1. Unternehmensdaten'!C23=0,'1. Statistische Daten'!H64,'1. Unternehmensdaten'!C23)),'1. Unternehmensdaten'!C23="Lohnsumme fehlt!"),'1. Statistische Daten'!H64,IF('1. Unternehmensdaten'!C23=0,'1. Statistische Daten'!H64,'1. Unternehmensdaten'!C23)) -> 
B68: Gerätekosten (AfA für Maschinen und Geräte, GeWiGü, Reparaturen) | D68: =IF(OR(ISERROR(IF('1. Unternehmensdaten'!C24=0,0,'1. Unternehmensdaten'!C24)),'1. Unternehmensdaten'!C24="Lohnsumme fehlt!"),0,IF('1. Unternehmensdaten'!C24=0,0,'1. Unternehmensdaten'!C24)) -> 0.00%
B69: Objektleiterkosten | D69: =IF(OR(ISERROR(IF('1. Unternehmensdaten'!C50=0,'1. Statistische Daten'!H66,'1. Unternehmensdaten'!C50)),'1. Unternehmensdaten'!C50="Lohnsumme fehlt!"),'1. Statistische Daten'!H66,IF('1. Unternehmensdaten'!C50=0,'1. Statistische Daten'!H66,'1. Unternehmensdaten'!C50)) -> 
B70: Filialkosten | D70: =IF(OR(ISERROR(IF('1. Unternehmensdaten'!C53=0,0,'1. Unternehmensdaten'!C53)),'1. Unternehmensdaten'!C53="Lohnsumme fehlt!"),0,IF('1. Unternehmensdaten'!C53=0,0,'1. Unternehmensdaten'!C53)) -> 0.00%
B71: Gemeinkosten | D71: =IF(OR(ISERROR(IF('1. Unternehmensdaten'!C56=0,'1. Statistische Daten'!H65,'1. Unternehmensdaten'!C56)),'1. Unternehmensdaten'!C56="Lohnsumme fehlt!"),'1. Statistische Daten'!H65,IF('1. Unternehmensdaten'!C56=0,'1. Statistische Daten'!H65,'1. Unternehmensdaten'!C56)) -> 
A72: =D72 ->  | B72: Summe Pos. H | D72: =SUM(D67:D71) ->  | E72: =F72/F3 ->  | F72: =(F3+F4)*$A$72 -> 
C74: Summe Pos. B + C + D + E + F + G + H | E74: =SUM(E62:E73) ->  | F74: =F3*$E$74 -> 
B76: Summe Unternehmenskosten (= Stundensatz zur Vollkostendeckung) | F76: =F3+F74 -> 
A78: I | B78: Risiko & Gewinn
B79: Unternehmerrisiko | D79: =IF(ISBLANK('1. Unternehmensdaten'!B79),'1. Statistische Daten'!E8,'1. Unternehmensdaten'!B79) -> 1.50%
B80: Gewinn | D80: =IF(ISBLANK('1. Unternehmensdaten'!B80),'1. Statistische Daten'!E9,'1. Unternehmensdaten'!B80) -> 5.00%
A81: =D81 -> 6.50% | B81: Summe Pos. I | D81: =SUM(D79:D80) -> 6.50% | E81: =F81/F3 ->  | F81: =F76*$A$81 -> 
C83: Summe Pos. B + C + D + E + F + G + H + I | E83: =SUM(E74:E82) ->  | F83: =F3*$E$83 -> 
B86: Stundenverrechnungssatz zu Vollkosten inkl. Gewinn | F86: =F3+F83 -> 
B88: Mehrstunden | C88: 25% | F88: =(1+$C88)*F$51+F$60+F$72+F$81 -> 
B89: Überstunden oder Nachstunde | C89: 50%
B90: Sonn- und Feiertagsstunden | C90: 100%
B92: Zusammentreffen mehrerer Zuschläge gem. KV (zB)
B93: Nachtüberstunde an einem Wochentag (nicht Feiertag) | C93: 100% | F93: =(1+$C93)*F$51+F$60+F$72+F$81 -> 
B94: Mehrstunde an einem Sonntag | C94: 125%
B95: Sonntag- oder Feiertagüberstunde oder -nachtstunde | C95: 150%
B96: Sonntagüberstunde in der Nacht | C96: 200%

Sheet 1. Übersicht LZ_NLZ
B1: Ausgangsdaten | D1: Kal.Tage/Jahr | E1: Kal.Tage/Wo | F1: Arb.Zeit/Wo | G1: Arb.Tage/Wo | H1: Std./AT
B2: 52 volle Wochen plus Rumpfwoche | D2: 365 | E2: 7 | F2: 40 | G2: 5 | H2: 8
B3: Schalttag jedes 4. Jahr (Ø 1/4 Kdtg) | D3: 0.25
E4: Wo/Jahr | F4: Std/Jahr | G4: Std./Mo | H4: Arb.Tage/Jahr
B5: Vertragliche Brutto - Jahresarbeitszeit | D5: =SUM(D2:D4) -> 365.25 | E5: =D5/E2 -> 52.18 | F5: =E5*F2 -> 2,087.14 | G5: =H5*H2/12 -> 173.93 | H5: =E5*G2 -> 260.89
B7: LOHNNEBENKOSTENBERECHNUNG
B9: Ermittlung der Ø Anwesenheitszeit / Jahr | E9: Arbeiter
B10: Urlaubsdauer in Wochen | E10: 5 Wochen | G10: 6 Wochen
B11: 1. Ø Vertragliche Brutto-Jahresarbeitszeit | D11: AT | E11: =H5 -> 260.89 | G11: =E11 -> 260.89
B12: 2. 15 gesetzliche Feiertage | D12: AT | E12: =VLOOKUP('1. Unternehmensdaten'!$B$19,Feiertage2,2,0) -> 10.46 | F12: =E12/E20 -> 4.97% | G12: =E12 -> 10.46 | H12: =G12/G20 -> 5.09%
B13: 2a. Zusätzl. arbeitsfreie Tage gem. KV | D13: AT | E13: =VLOOKUP('1. Unternehmensdaten'!$B$19,Feiertage2,3,0) -> 0.71 | F13: =E13/E20 -> 0.34% | G13: =E13 -> 0.71 | H13: =G13/G20 -> 0.35%
B14: 3. Vertragliche Netto-Jahresarbeitszeit (1-2-2a) | D14: AT | E14: =E11-E12-E13 -> 249.71 | G14: =E14 -> 249.71
B15: 4. Urlaub | D15: AT | E15: 25.00 | F15: =E15/E20 -> 11.87% | G15: 30.00 | H15: =G15/G20 -> 14.59%
B16: 5. Soll-Arbeitszeit / Jahr (3-4) | D16: AT | E16: =E14-E15 -> 224.71 | G16: =G14-G15 -> 219.71
B17: 6. Krankenstand | D17: AT | E17: =IF(IF(ISERROR(IF(ISBLANK('1. Unternehmensdaten'!B36),ROUNDUP('1. Unternehmensdaten'!B34,0),'1. Unternehmensdaten'!B36)),'1. Statistische Daten'!B8,IF(ISBLANK('1. Unternehmensdaten'!B36),ROUNDUP('1. Unternehmensdaten'!B34,0),'1. Unternehmensdaten'!B36))=0,'1. Statistische Daten'!B8,IF(ISERROR(IF(ISBLANK('1. Unternehmensdaten'!B36),ROUNDUP('1. Unternehmensdaten'!B34,0),'1. Unternehmensdaten'!B36)),'1. Statistische Daten'!B8,IF(ISBLANK('1. Unternehmensdaten'!B36),ROUNDUP('1. Unternehmensdaten'!B34,0),'1. Unternehmensdaten'!B36))) -> 12.60 | F17: =E17/E20 -> 5.98% | G17: =E17 -> 12.60 | H17: =G17/G20 -> 6.13%
B18: 7. Sonstige Verhinderungszeiten | D18: AT | E18: =IF(ISERROR('1. Unternehmensdaten'!B37),'1. Statistische Daten'!B9,IF(ISBLANK('1. Unternehmensdaten'!B37),'1. Statistische Daten'!B9,IF('1. Unternehmensdaten'!B37=0,'1. Statistische Daten'!B9,'1. Unternehmensdaten'!B37))) -> 1.50 | F18: =E18/E20 -> 0.71% | G18: =E18 -> 1.50 | H18: =G18/G20 -> 0.73%
B19: 7a. Sonstige Fehlzeiten (Berufsschulzeit - Lehrlinge, Ausbildungen, …) | D19: AT | E19: =IF(ISERROR('1. Unternehmensdaten'!B38),0,IF(ISBLANK('1. Unternehmensdaten'!B38),0,IF('1. Unternehmensdaten'!B38=0,0,'1. Unternehmensdaten'!B38))) -> 0.00 | F19: =E19/E20 -> 0.00% | G19: =E19 -> 0.00 | H19: =G19/G20 -> 0.00%
B20: 8. Anwesenheitszeit/Jahr (5-6-7-7a), Leistungszeit | D20: AT | E20: =E16-E17-E18-E19 -> 210.61 | F20: 100.00% | G20: =G16-G17-G18-G19 -> 205.61 | H20: 100.00%
D21: oder Std. | E21: =E20*H2 -> 1,684.92 | G21: =G20*H2 -> 1,644.92
D22: oder Wo | E22: =E21/F2 -> 42.12 | G22: =G21/F2 -> 41.12
B24: Ø Anwesenheitszeit im Jahr pro Woche | D24: Std. | E24: =E21/E5 -> 32.29 | G24: =G21/E5 -> 31.52
B26: Nichtanwesenheitszeiten / Jahr | E26: Arbeiter
B27: Urlaubsdauer in Wochen | E27: 5 Wochen | G27: 6 Wochen
B28: 9. Summe Nichtanwesenheits-Zeiten/Jahr (2+2a+4+6+7+7a), Fehlzeiten, Ausfallzeiten | D28: AT | E28: =E11-E20 -> 50.28 | F28: =E28/E20 -> 23.87% | G28: =G11-G20 -> 55.28 | H28: =G28/G20 -> 26.88%
D29: oder Std. | E29: =E28*8 -> 402.22 | G29: =G28*8 -> 442.22
D30: oder Wo | E30: =E29/40 -> 10.06 | G30: =G29/40 -> 11.06
B32: Berechnung der Lohnnebenkosten (Arbeiter) | E32: Urlaubsdauer
E33: 5 Wochen | G33: 6 Wochen
B34: a) Anwesenheitsentgelt; AW-Entgelt | D34: Std. | E34: =E21 -> 1,684.92 | F34: 100.00% | G34: =G21 -> 1,644.92 | H34: 100.00%
B35: b) Nicht AW-Entgelt | D35: Std. | E35: =E29 -> 402.22 | F35: =E35/E34 -> 23.87% | G35: =G29 -> 442.22 | H35: =G35/G34 -> 26.88%
B36: c) Laufende Bezüge (a+b) | E36: =E34+E35 -> 2,087.14 | F36: =F34+F35 -> 123.87% | G36: =G34+G35 -> 2,087.14 | H36: =H34+H35 -> 126.88%
B37: d) Sonderzahlungen/SZ | C37: Stunden | D37: % auf LB
B38: Weihnachtsremuneration (4,33 Wo) | C38: 173.93 | D38: =C38/E36 -> 8.33%
B39: Urlaubszuschuss UZ (4,33 Wo) | C39: 173.93 | D39: =C39/E36 -> 8.33%
B40: Summe Sonderzahlung | C40: =SUM(C38:C39) -> 347.86 | D40: =SUM(D38:D39) -> 16.67% | E40: =C40 -> 347.86 | F40: =E40/E34 -> 20.65% | G40: =E40 -> 347.86 | H40: =G40/G34 -> 21.15%
B41: e) Direkte Arbeitskosten (c+d) | E41: =E36+E40 -> 2,435.00 | F41: =E41/E34 -> 144.52% | G41: =G36+G40 -> 2,435.00 | H41: =G41/G34 -> 148.03%
B42: f) Sozialabgaben | C42: in % auf LB | D42: in % auf SZ
B43: Sozialversicherungsbeiträge (AG-Anteil)
B44: Pensionsversicherung | C44: ='1. Österreichische Werte'!B76 -> 12.55% | D44: ='1. Österreichische Werte'!B76 -> 12.55%
B45: Unfallversicherung | C45: ='1. Österreichische Werte'!B77 -> 1.30% | D45: ='1. Österreichische Werte'!B77 -> 1.30%
B46: Krankenversicherung | C46: ='1. Österreichische Werte'!B78 -> 3.78% | D46: ='1. Österreichische Werte'!B78 -> 3.78%
B47: Arbeitslosenversicherung und Zuschlag gem. IESG | C47: ='1. Österreichische Werte'!B79+'1. Österreichische Werte'!B80 -> 3.35% | D47: ='1. Österreichische Werte'!B79+'1. Österreichische Werte'!B80 -> 3.35%
B48: Wohnbauförderungsbeitrag | C48: ='1. Österreichische Werte'!B81 -> 0.50%
B49: Summe Sozialversicherungsbeiträge | C49: =SUM(C44:C48) -> 21.48% | D49: =SUM(D44:D48) -> 20.98%
B50: Sonstige Sozialabgaben
B51: Familienlastenausgleichfond (DG-Beitrag) (DB) | C51: ='1. Österreichische Werte'!B83 -> 3.90% | D51: ='1. Österreichische Werte'!B83 -> 3.90%
B52: Dienstgeberzuschlag **unterschiedlich (DZ) | C52: =VLOOKUP('1. Unternehmensdaten'!B5,dezet,2,0) ->  | D52: =VLOOKUP('1. Unternehmensdaten'!B5,dezet,2,0) -> 
B53: Kommunalsteuer | C53: ='1. Österreichische Werte'!B85 -> 3.00% | D53: ='1. Österreichische Werte'!B85 -> 3.00%
B54: Summe Sonstige Sozialabgaben | C54: =SUM(C51:C53) ->  | D54: =SUM(D51:D53) -> 
B55: Summe Sozialabgaben auf laufende Bezüge | C55: =C54+C49 -> 
C56: *LB (=c)) | E56: =F36 -> 123.9% | F56: =$C$55*E56 ->  | G56: =H36 -> 126.9% | H56: =$C$55*G56 -> 
B57: Summe Sozialabgaben auf Sonderzahlung | D57: =D54+D49 -> 
D58: *SZ (=d)) | E58: =F40 -> 20.65% | F58: =$D$57*E58 ->  | G58: =H40 -> 21.15% | H58: =$D$57*G58 -> 
B59: Summe Sozialabgaben auf LB+SZ, bezogen auf AW (a) | F59: =SUM(F56:F58) ->  | H59: =SUM(H56:H58) -> 
B60: g) Abfertigungskosten NEU 1,53% auf LB (a + b) und SZ | F60: =1.53%*F41 -> 2.21% | H60: =1.53%*H41 -> 2.26%
B61: g*) Kosten für Abfertigung alt (betriebsindividuell) | F61: =IF(ISERROR('1. Kalkulation'!$E$47-'1. Übersicht LZ_NLZ'!F60),0,'1. Kalkulation'!$E$47-'1. Übersicht LZ_NLZ'!F60) -> -0.00% | H61: =IF(ISERROR('1. Kalkulation'!$E$47-'1. Übersicht LZ_NLZ'!F60),0,'1. Kalkulation'!$E$47-'1. Übersicht LZ_NLZ'!F60) -> -0.00%
B62: h) Sonstige Nebenkosten
B63: Fahrtkostenersatz DN | D63: ='1. Kalkulation'!D54 -> 
B64: Behindertenausgleichstaxe | D64: ='1. Kalkulation'!D55 -> 
B65: Dienstgeberabgabe/U-Bahnsteuer (nur in Wien) | D65: ='1. Kalkulation'!D56 -> 0.00%
B66: Auflösungsabgabe | D66: ='1. Kalkulation'!D57 -> 
B67: Kosten für Arbeitnehmerschutz (Präventivdienste und PSA) | D67: ='1. Kalkulation'!D58 -> 
B68: Summe Sonstige Nebenkosten | D68: =SUM(D63:D67) ->  | F68: =$D$68*F36 ->  | H68: =$D$68*F36 -> 
B69: Nebenkosten (b+d+f+g+h) | F69: =F35+F40+F59+F60+F61+F68 ->  | H69: =H35+H40+H59+H60+H61+H68 -> 

Sheet 1. Österreichische Werte
A1: Werte Behindertenausgleichstaxe
A2: Quelle: | B2: https://www.weka.at/personalverrechnung/News/Ausgleichstaxe-2018
A3: Quelle & Definition: | B3: https://www.sozialministeriumservice.at/site/Menschen_mit_Behinderung/Ausbildung_Beruf_und_Beschaeftigung/Ausgleichstaxe_und_Praemie/Ausgleichstaxe_und_Praemie
A5: Jahr 2018 | B5: Anzahl MA | C5: EUR/nebP/Mon | D5: EUR/nebP/Jahr | F5: nebP = nicht eingestellte begünstigte Person | J5: Jahr 2017 | K5: Anzahl MA | L5: EUR/nebP/Mon | M5: EUR/nebP/Jahr | N5: Steigerung 2018 | P5: Jahr 2016 | Q5: Anzahl MA | R5: EUR/nebP/Mon | S5: EUR/nebP/Jahr | T5: Steigerung 2017 | V5: Jahr 2015 | W5: Anzahl MA | X5: EUR/nebP/Mon | Y5: EUR/nebP/Jahr | Z5: Steigerung 2016 | AB5: Jahr 2014 | AC5: Anzahl MA | AD5: EUR/nebP/Mon | AE5: EUR/nebP/Jahr | AF5: Steigerung 2015
A6: weniger | B6: 100 | C6: € 257.00 | D6: =C6*12 -> € 3,084.00 | J6: weniger | K6: 100 | L6: € 253.00 | M6: =L6*12 -> € 3,036.00 | N6: =C6/L6-1 -> 1.58% | P6: weniger | Q6: 100 | R6: € 251.00 | S6: =R6*12 -> € 3,012.00 | T6: =L6/R6-1 -> 0.80% | V6: weniger | W6: 100 | X6: € 248.00 | Y6: =X6*12 -> € 2,976.00 | Z6: =R6/X6-1 -> 1.21% | AB6: weniger | AC6: 100 | AD6: € 244.00 | AE6: =AD6*12 -> € 2,928.00 | AF6: =X6/AD6-1 -> 1.64% | AG6: 1.64%
A7: 100 bis | B7: 399 | C7: € 361.00 | D7: =C7*12 -> € 4,332.00 | E7: Wert für Kalk | F7: =IF('1. Unternehmensdaten'!B11<100,'1. Österreichische Werte'!D6,IF('1. Unternehmensdaten'!B11<399,'1. Österreichische Werte'!D7,'1. Österreichische Werte'!D8)) -> € 3,084.00 | J7: 100 bis | K7: 399 | L7: € 355.00 | M7: =L7*12 -> € 4,260.00 | N7: =C7/L7-1 -> 1.69% | P7: 100 bis | Q7: 399 | R7: € 352.00 | S7: =R7*12 -> € 4,224.00 | T7: =L7/R7-1 -> 0.85% | V7: 100 bis | W7: 399 | X7: € 348.00 | Y7: =X7*12 -> € 4,176.00 | Z7: =R7/X7-1 -> 1.15% | AB7: 100 bis | AC7: 399 | AD7: € 342.00 | AE7: =AD7*12 -> € 4,104.00 | AF7: =X7/AD7-1 -> 1.75% | AG7: 1.75%
A8: mehr als | B8: 400 | C8: € 383.00 | D8: =C8*12 -> € 4,596.00 | J8: mehr als | K8: 400 | L8: € 377.00 | M8: =L8*12 -> € 4,524.00 | N8: =C8/L8-1 -> 1.59% | P8: mehr als | Q8: 400 | R8: € 374.00 | S8: =R8*12 -> € 4,488.00 | T8: =L8/R8-1 -> 0.80% | V8: mehr als | W8: 400 | X8: € 370.00 | Y8: =X8*12 -> € 4,440.00 | Z8: =R8/X8-1 -> 1.08% | AB8: mehr als | AC8: 400 | AD8: € 364.00 | AE8: =AD8*12 -> € 4,368.00 | AF8: =X8/AD8-1 -> 1.65% | AG8: 1.65%
A10: Werte Dienstgeberzuschlag
A11: Definition: | B11: https://www.wko.at/service/steuern/Zuschlag_zum_Dienstgeberbeitrag.html
A13: Bundesland | B13: Höhe DZ 2018 | C13: DZ | E13: Werte 2015 | F13: DZ
A14: Burgenland | B14: 0.44% | C14: (keine Änderung zu 2017) | E14: Burgenland | F14: 0.44%
A15: Kärnten | B15: 0.41% | E15: Kärnten | F15: 0.41%
A16: Niederösterreich | B16: 0.40% | E16: Niederösterreich | F16: 0.40%
A17: Oberösterreich | B17: 0.36% | E17: Oberösterreich | F17: 0.36%
A18: Salzburg | B18: 0.42% | E18: Salzburg | F18: 0.42%
A19: Steiermark | B19: 0.39% | E19: Steiermark | F19: 0.39%
A20: Tirol | B20: 0.43% | E20: Tirol | F20: 0.43%
A21: Vorarlberg | B21: 0.39% | E21: Vorarlberg | F21: 0.39%
A22: Wien | B22: 0.40% | E22: Wien | F22: 0.40%
A25: Werte U-Bahnsteuer/Wien 2018 (Wert seit 01.06.2012)
B26: pro Woche | C26: Wo/Mon | D26: pro Monat | E26: pro Jahr
A27: pro Mitarbeiter | B27: € 2.00 | C27: 4.35 | D27: =B27*C27 -> € 8.70 | E27: =D27*12 -> € 104.40 | G27: zahlbar für MA bis 55 Jahre und nicht bei GFB
A29: Definition und Quelle: | B29: https://www.wko.at/service/steuern/DGA_-_Dienstgeberabgabe_der_Gemeinde_Wien_(U-Bahn_Steuer)_.html
A30: Präventivdienste (Arbeitsmediziner, SFK) | L30: es fehlt | M30: Werte für Pärventivdienste
A31: Anzahl MA | B31: Std/Jahr | C31: EUR/Jahr | D31: EUR/Std | E31: EUR/Jahr/MA | H31: Anpasung | M31: 2 Angebote über Stundensätze als Berechnungsgrundlage
A32: 200 | B32: 150 | C32: 10,800.00 | D32: =C32/B32 -> 72.00 | E32: =C32/A32 -> 54.00 | F32: SFK | G32: 2018 | H32: 2018 | I32: 2.80%
A33: 200 | B33: 150 | C33: =B33*D33 -> 10,291.15 | D33: =64.8*1.038*1.02 -> 68.61 | E33: =C33/A33 -> 51.46 | F33: SFK | G33: 2017 | H33: 2017 | I33: 1.60% | L33: Kosten für Präventivdienste (Arbeitsmediziner, SFK) und PSA (Gesamtkosten)
A34: 200 | B34: 100 | C34: 10,200.00 | D34: =C34/B34 -> 102.00 | E34: =C34/A34 -> 51.00 | F34: AM | G34: 2016 | H34: 2016 | I34: 1.75%
A35: 200 | B35: 100 | C35: 12,000.00 | D35: =C35/B35 -> 120.00 | E35: =C35/A35 -> 60.00 | F35: AM | G35: 2013 auf 2015 hochgerechnet
D37: Schnitt SFK/MA/Jahr | E37: =AVERAGE(E32:E33)*(1+I34)*(1+I33)*(1+I32) -> 56.04
D38: Schnitt AM/MA/Jahr | E38: =AVERAGE(E34:E35)*(1+I34)*(1+I33)*(1+I32) -> 58.98 | G38: Daten für Kalkulation | H38: in % von Lohn
D39: Durchschnittl. Kosten/MA/Jahr | E39: =SUM(E37:E38) -> 115.02 | G39: =E39*'1. Unternehmensdaten'!B11 -> 0 | H39: =G39/'1. Unternehmensdaten'!B32 -> 
A41: Auflösungsabgabe
A42: Jahr 2018 | B42: € 128.00 | C42: EUR/Auflösung | E42: Wert 2017 | F42: € 124.00 | G42: =F42/F43-1 -> 2.48% | H42: Erhöhung zu 2016
B43: =B42/F42-1 -> 3.23% | C43: Erhöhung zu 2017 | E43: Wert 2016 | F43: € 121.00 | G43: =F43/F44-1 -> 2.54% | H43: Erhöhung zu 2015
E44: Wert 2015 | F44: € 118.00 | G44: =F44/F45-1 -> 2.61% | H44: Erhöhung zu 2014 | L44: Anzahl Beendigungen des DV aus Eingabedaten aus dem Unternehmensdatenblatt
E45: Wert 2014 | F45: € 115.00 | L45: Ansonsten Durchschnittswert (Statisktik)
A46: Definition und Quelle: | B46: https://www.sozialversicherung.at/portal27/esvportal/content/contentWindow?viewmode=content&contentid=10007.683914
A47: Abfertigungsvorsorge
A48: Abfertigungsvorsorge NEU | B48: 1.53%
A49: Abfertigung NEU (5 Wo Url) | B49: ='1. Übersicht LZ_NLZ'!F60 -> 2.21% | C49: auf Leistungslöhne, Nichtleistungslöhne und Sonderzahlungen bezogen auf Leistungslöhne
A50: Abfertigung NEU (6 Wo Url) | B50: ='1. Übersicht LZ_NLZ'!H60 -> 2.26% | C50: auf Leistungslöhne, Nichtleistungslöhne und Sonderzahlungen bezogen auf Leistungslöhne
A53: Abfertigung ALT
A55: Jahre | B55: Monate | C55: Abfertigung Bezüge | D55: % | E55: Wahrscheinlichkeit | F55: % AbfVS
A56: 3 | B56: =A56*12 -> 36 | C56: 2 | D56: =C56/B56 -> 5.56% | E56: 0% | F56: =D56*E56 -> 0.00%
A57: 5 | B57: 60 | C57: 3 | D57: 5.00% | E57: 0% | F57: 0.00%
A58: 10 | B58: 120 | C58: 4 | D58: 3.33% | E58: 0% | F58: 0.00%
A59: 15 | B59: 180 | C59: 6 | D59: 3.33% | E59: 0% | F59: 0.00%
A60: 20 | B60: 240 | C60: 9 | D60: 3.75% | E60: 0% | F60: 0.00%
A61: 25 | B61: 300 | C61: 12 | D61: 4.00% | E61: 95% | F61: 3.80%
D62: Fluktuationsabschlag | E62: 5%
E63: =SUM(E56:E62) -> 100% | F63: =SUM(F56:F62) -> 3.80%
A64: Quelle: | B64: https://www.wko.at/service/arbeitsrecht-sozialrecht/Abfertigung_Alt.html
A66: IESG (Insolvenz-Entgeltsicherungs-Gesetz) - seit 01.01.2016 neuerlich gesenkt
A67: IESG Zuschlag | B67: 0.35% | D67: Wert 2015 | E67: 0.45% | F67: 2015-01-01
D68: Wert 2014 | E68: 0.50%
A70: Senkung des IESG Zuschlags von 0,45 % auf 0,35 % in BGBl II 2015/375 vom 24.11.2015
A71: Quelle: | B71: https://www.ris.bka.gv.at/Dokumente/BgblAuth/BGBLA_2015_II_375/BGBLA_2015_II_375.pdf
A74: Werte Sozialversicherung
A75: Betragsbestandteile | B75: Stand: 2018 | C75: Werte 2017 | D75: Werte 2016 | E75: Werte bis 2015
A76: Pensionsversicherung | B76: 12.55% | C76: 12.55% | D76: keine Veränderung | E76: 12.55%
A77: Unfallversicherung | B77: 1.30% | C77: 1.30% | D77: für 2017 | E77: 1.30%
A78: Krankenversicherung | B78: 3.78% | C78: 3.78% | E78: 3.70%
A79: Arbeitslosenversicherung | B79: 3.00% | C79: 3.00% | E79: =3%+0.45% -> 3.45%
A80: IESG Zuschlag | B80: 0.35% | C80: 0.35% | E80: 0.50%
A81: Wohnbauförderung | B81: 0.50% | C81: 0.50% | E81: 0.50%
B82: =SUM(B76:B81) -> 21.48% | C82: =SUM(C76:C81) -> 21.48% | E82: =SUM(E76:E81) -> 22.00%
A83: Dienstgeberbeitrag (DB) | B83: 3.90% | C83: 4.10% | E83: =4.5% -> 4.50%
A84: Dienstgeberzuschlag (DZ)
A85: Kommunalsteuer | B85: 3.00% | C85: 3.00% | E85: 3.00%
A87: Quelle (Aktuelle Werte): | B87: https://www.sozialversicherung.at/portal27/esvportal/content?contentid=10007.683916&viewmode=content
A88: Beitragsrechtliche Werte
B89: https://www.wko.at/service/steuern/Aktuelle_Werte_Lohnverrechnung.html

Sheet 1. KV Daten DFG 2018
A1: Lohngruppe | B1: Bezeichnung | C1: Bruttostundensatz | D1: 2018 | E1: 2017
A2: 1 | B2: Facharbeiter | C2: € 10.60 | E2: € 10.33 | F2: =C2/E2-1 -> 2.61% | H2: Bruttostundensätze (Lohngruppen)
A3: 2 | B3: Sonderreiniger | C3: € 9.62 | E3: € 9.36 | F3: 2.78% | H3: Zuschläge (Üst., Nacht, SEG, Infektion, FT/SO)
A4: 3 | B4: Hotelreinigung | C4: € 9.39 | E4: € 9.14 | F4: 2.74% | H4: Trennungszulage, Zehrgeld
A5: 4 | B5: Hausbetreuer | C5: € 9.11 | E5: € 8.87 | F5: 2.71% | H5: Fahrtkostenentschädigung
A6: 5 | B6: UHR Krankenhaus/Pflegeheim | C6: € 8.77 | E6: € 8.54 | F6: 2.69%
A7: 6 | B7: UHR (Büro, Industrie, …) | C7: € 8.68 | E7: € 8.49 | F7: 2.24%
B9: Zehrgeld pro Tag | C9: € 10.30 | E9: € 10.10 | F9: =C9/E9-1 -> 1.98%
B10: Trennungszulage pro Tag | C10: € 17.30 | E10: € 16.90 | F10: =C10/E10-1 -> 2.37%
F12: =AVERAGE(F2:F7) -> 2.63% | H12: Erhöhung im Durchschnitt über die Lohngruppen

Sheet 1. Statistische Daten
A1: Feiertage
B2: 15 gesetzliche Feiertage | C2: Zusätzl. arbeitsfreie Tage gem. KV | D2: Gesamt
A3: langjähriger Durchschnitt | B3: 10.46 | C3: 0.71 | D3: =SUM(B3:C3) -> 11.18 | F3: Quelle: https://www.wko.at/branchen/stmk/gewerbe-handwerk/chemische-gewerbe-denkmal-fassade-gebaeudereiniger/Lohnnebenkosten_DFG_Reiniger_Stmk_2018.pdf
A4: laufendes Jahr (2018) | B4: 11.04 | C4: 1.00 | D4: =SUM(B4:C4) -> 12.04 | F4: Quelle: http://brückentage.info/2018/feiertage-oesterreich-2018.html und https://www.wko.at/Content.Node/branchen/oe/Chemische-Gewerbe-und-der-Denkmal-Fassaden-und-Gebaeudereiniger/Denkmal---Fassaden--und-Gebaeuderein/Lohnnebenkosten-Steiermark.pdf
A7: Durchschnittswerte Stand: 2018 | F7: Unterschiedliche Werte veröffentlicht (Gesamtösterreich, Arbeiter, Angestellte, …)
A8: Krankenstand (Arbeiter) | B8: 12.6 | D8: Risiko | E8: 1.50% | F8: Quelle: https://www.wko.at/branchen/stmk/gewerbe-handwerk/chemische-gewerbe-denkmal-fassade-gebaeudereiniger/Lohnnebenkosten_DFG_Reiniger_Stmk_2018.pdf
A9: Sonstige Verhinderungszeiten | B9: 1.5 | D9: Gewinn | E9: 5%
A13: Studie KMU-Forschung Austria - Beispielhafte Musterstundensatzkalkulation
B15: EPU Wien | C15: 17 Beschäftigte | D15: 70 Beschäftigte | E15: 250 Beschäftigte | F15: 510 Beschäftigte
A16: Umsatz | B16: 35,000.00
A17: Kostenstruktur
A18: Materialaufwand | B18: 2,100.00 | C18: 29,600.00 | D18: 219,500.00 | E18: 348,410.00 | F18: 417,000.00
A19: Materialaufwand in % | B19: =B18/B$28 -> 6.03% | C19: =C18/C$28 -> 4.02% | D19: =D18/D$28 -> 7.97% | E19: =E18/E$28 -> 3.97% | F19: =F18/F$28 -> 2.29%
A20: Fremdleistungen | B20: 2,740.00 | C20: 85,900.00 | D20: 131,760.00 | E20: 594,410.00 | F20: 1,336,300.00
A21: Fremdleistungen in % | B21: =B20/B$28 -> 7.86% | C21: =C20/C$28 -> 11.68% | D21: =D20/D$28 -> 4.79% | E21: =E20/E$28 -> 6.78% | F21: =F20/F$28 -> 7.35%
A22: Personalkosten | B22: 20,340.00 | C22: 456,650.00 | D22: 1,884,400.00 | E22: 6,584,790.00 | F22: 13,693,400.00 | G22: =788704/F22 -> 0.0575973826807075
A23: Personalkosten in % | B23: =B22/B$28 -> 58.36% | C23: =C22/C$28 -> 62.08% | D23: =D22/D$28 -> 68.46% | E23: =E22/E$28 -> 75.09% | F23: =F22/F$28 -> 75.35%
A24: Sonstiger Aufwand | B24: 9,240.00 | C24: 152,800.00 | D24: 483,060.00 | E24: 1,164,970.00 | F24: 2,623,370.00
A25: Sonstiger Aufwand in % | B25: =B24/B$28 -> 26.51% | C25: =C24/C$28 -> 20.77% | D25: =D24/D$28 -> 17.55% | E25: =E24/E$28 -> 13.28% | F25: =F24/F$28 -> 14.44%
A26: Finanzierungskosten | B26: 430.00 | C26: 10,640.00 | D26: 33,850.00 | E26: 77,050.00 | F26: 102,570.00
A27: Finanzierungskosten | B27: =B26/B$28 -> 1.23% | C27: =C26/C$28 -> 1.45% | D27: =D26/D$28 -> 1.23% | E27: =E26/E$28 -> 0.88% | F27: =F26/F$28 -> 0.56%
A28: Summe Kosten | B28: =B18+B20+B22+B24+B26 -> 34,850.00 | C28: 735,590.00 | D28: 2,752,570.00 | E28: 8,769,630.00 | F28: 18,172,640.00
A29: Summe Kosten in % | B29: 100.0% | C29: 100.0% | D29: 100.0% | E29: 100.0% | F29: 100.0%
A30: Kosten in EUR | B30: 34,850.00 | C30: =C28 -> 735,590.00 | D30: =D28 -> 2,752,570.00 | E30: =E28 -> 8,769,630.00 | F30: =F28 -> 18,172,640.00
A31: Gemeinkosten | B31: =ROUNDUP(B18*0.02+B22*0.02+B24+B26,0) -> 10,119.00 | C31: =ROUNDUP(C18*0.02+C22*0.108906164458557+C24+C26,0) -> 213,764.00 | D31: =ROUNDUP(D18*0.02+D22*0.0632434727234133+D24+D26,0) -> 640,476.00 | E31: =ROUNDUP(E18*0.02+E22*0.0563323963254713+E24+E26,0) -> 1,619,926.00 | F31: =ROUNDUP(F18*0.02+F22*0.0575973826807075+F24+F26,0) -> 3,522,984.00
A32: Materialkostenaufschlag verr | B32: 20% | C32: 20% | D32: 20% | E32: 20% | F32: 20%
A33: Materialkostenaufschlag in EUR | B33: =ROUNDUP(B18*0.98*B32,0) -> 412.00 | C33: =ROUNDUP(C18*0.98*C32,0) -> 5,802.00 | D33: =ROUNDUP(D18*0.98*D32,0) -> 43,022.00 | E33: =ROUNDUP(E18*0.98*E32,0) -> 68,289.00 | F33: =ROUNDUP(F18*0.98*F32,0) -> 81,732.00
A34: Restliche Gemeinkosten | B34: =B31-B33 -> 9,707.00 | C34: =C31-C33 -> 207,962.00 | D34: =D31-D33 -> 597,454.00 | E34: =E31-E33 -> 1,551,637.00 | F34: =F31-F33 -> 3,441,252.00
A35: verrechenbare Stunden | B35: 1,744.00 | C35: 26,276.00 | D35: 114,512.00 | E35: 417,377.00 | F35: 853,394.00
A36: Gemeinkosten in EUR/Std | B36: =B34/B35 -> 5.57 | C36: =C34/C35 -> 7.91 | D36: =D34/D35 -> 5.22 | E36: =E34/E35 -> 3.72 | F36: =F34/F35 -> 4.03
A37: Gemeinkosten in %/Umsatz | B37: =B34/B16 -> 27.73%
A38: Gemeinkosten in %/Personalkosten | B38: =B34/B22 -> 47.72% | C38: =C34/C22 -> 45.54% | D38: =D34/D22 -> 31.71% | E38: =E34/E22 -> 23.56% | F38: =F34/F22 -> 25.13%
A39: Sonstiger Aufwand in % von Personal | B39: =B24/B22 -> 45.43% | C39: =C24/C22 -> 33.46% | D39: =D24/D22 -> 25.63% | E39: =E24/E22 -> 17.69% | F39: =F24/F22 -> 19.16%
A40: Personalkosten Brutto (ohne LNK!) | B40: =B22/(100%+B43)*100% -> 10,561.30 | C40: =C22/(100%+C43)*100% -> 237,109.92 | D40: =D22/(100%+D43)*100% -> 975,917.97 | E40: =E22/(100%+E43)*100% -> 3,399,654.09 | F40: =F22/(100%+F43)*100% -> 7,044,292.40
A41: Nichtleistungslöhne in % | B41: 24.90% | C41: 24.90% | D41: 24.90% | E41: 24.90% | F41: 24.90%
A43: Lohnnebenkosten gem Studie | B43: 92.59% | C43: 92.59% | D43: 93.09% | E43: 93.69% | F43: 94.39%
A44: Diverse mögliche Zulagen | B44: 5% | C44: 5% | D44: 5% | E44: 5% | F44: 5%
A45: Gewinnaufschlag | B45: 5% | C45: 5% | D45: 5% | E45: 5% | F45: 5%
A47: Stundenlohn | B47: 8.50 | C47: 8.08 | D47: 8.08 | E47: 8.08 | F47: 8.08
A48: Lohnnebenkosten | B48: =B47*B43 -> 7.87 | C48: =C47*C43 -> 7.48 | D48: =D47*D43 -> 7.52 | E48: =E47*E43 -> 7.57 | F48: =F47*F43 -> 7.63
A49: Zulagen | B49: =B47*B44 -> 0.43 | C49: =C47*C44 -> 0.40 | D49: =D47*D44 -> 0.40 | E49: =E47*E44 -> 0.40 | F49: =F47*F44 -> 0.40
A50: Personalkosten | B50: =SUM(B47:B49) -> 16.80 | C50: =SUM(C47:C49) -> 15.97 | D50: =SUM(D47:D49) -> 16.01 | E50: =SUM(E47:E49) -> 16.05 | F50: =SUM(F47:F49) -> 16.11
A51: Gemeinkosten | B51: =B36 -> 5.57 | C51: =C36 -> 7.91 | D51: =D36 -> 5.22 | E51: =E36 -> 3.72 | F51: =F36 -> 4.03
A52: Selbstkosten | B52: =SUM(B50:B51) -> 22.36 | C52: =SUM(C50:C51) -> 23.88 | D52: =SUM(D50:D51) -> 21.22 | E52: =SUM(E50:E51) -> 19.77 | F52: =SUM(F50:F51) -> 20.14
A53: Gewinnaufschlag | B53: =B52*B45 -> 1.12 | C53: =C52*C45 -> 1.19 | D53: =D52*D45 -> 1.06 | E53: =E52*E45 -> 0.99 | F53: =F52*F45 -> 1.01
A54: Stundensatz netto | B54: =SUM(B52:B53) -> 23.48 | C54: =SUM(C52:C53) -> 25.07 | D54: =SUM(D52:D53) -> 22.28 | E54: =SUM(E52:E53) -> 20.76 | F54: =SUM(F52:F53) -> 21.15
A55: Gewinaufschlag auf PersKo | B55: =B53/B58 -> 10.53% | C55: =C53/C58 -> 11.83% | D55: =D53/D58 -> 10.51% | E55: =E53/E58 -> 9.80% | F55: =F53/F58 -> 9.98%
A57: Werte für Kalkulation | B57: Ein Personen Unternehmen | C57: bis 17 Mitarbeiter | D57: bis 70 Mitarbeiter | E57: bis 250 Mitarbeiter | F57: ab 250 Mitarbeiter | G57: Art des Unternehmens | H57: Daten für Kalkulation | K57: Art des Unternehmens | O57: angenommen Deine Matrix geht von A1 bis G19
A58: Stundenlohn inkl NLL | B58: =B47*(1+B41) -> 10.62 | C58: =C47*(1+C41) -> 10.09 | D58: =D47*(1+D41) -> 10.09 | E58: =E47*(1+E41) -> 10.09 | F58: =F47*(1+F41) -> 10.09 | G58: ='1. Unternehmensdaten'!B7 -> 0 | K58: Ein Personen Unternehmen | L58: 1 | O58: Suchbegriff 1 ( für die Spalte)= in D22
A59: Fahrtkostenersatz | C59: 2.73% | D59: 2.73% | E59: 2.73% | F59: 2.73% | H59: =VLOOKUP($A59,$A$58:$F$65,MATCH($G$58,$A$57:$F$57,0),FALSE) ->  | K59: bis 17 Mitarbeiter | L59: 2 | O59: Suchbegriff2 (für die zeile) = in D23
A60: Behindertenausgleichstaxe | D60: =D43-C43 -> 0.50% | E60: =E43-C43 -> 1.10% | F60: =E60 -> 1.10% | H60: =VLOOKUP($A60,$A$58:$F$65,MATCH($G$58,$A$57:$F$57,0),FALSE) ->  | K60: bis 70 Mitarbeiter | L60: 3
A61: Dienstgeberabgabe (U-Bahnsteuer) | F61: =F43-C43-F60 -> 0.70% | G61: generell dieser Wert, nur in Wien | H61: =IF('1. Unternehmensdaten'!B5="Wien",'1. Statistische Daten'!F61,0) -> 0.00% | K61: bis 250 Mitarbeiter | L61: 4 | O61: dann sieht das so aus
A62: Auflösungsabgabe | B62: 0 | C62: =$B$79 -> 0.00% | D62: =$B$79 -> 0.00% | E62: =$B$79 -> 0.00% | F62: =$B$79 -> 0.00% | H62: =VLOOKUP($A62,$A$58:$F$65,MATCH($G$58,$A$57:$F$57,0),FALSE) ->  | K62: ab 250 Mitarbeiter | L62: 5
A63: Arbeitnehmerschutz | B63: 0% | D63: =70*'1. Österreichische Werte'!$E$39/D35/D58 -> 0.70% | E63: =250*'1. Österreichische Werte'!$E$39/E35/E58 -> 0.68% | F63: =510*'1. Österreichische Werte'!$E$39/F35/F58 -> 0.68% | G63: ab 50 MA voller Wert, darunter halber Wert | H63: =VLOOKUP($A63,$A$58:$F$65,MATCH($G$58,$A$57:$F$57,0),FALSE) ->  | O63: SVERWEIS(D22;A2:G19;VERGLEICH(D23;A1:G1;0);FALSCH)
A64: Materialkosten/Personalkosten | B64: =B18*0.98/B35/B58 -> 11.12% | C64: =C18*0.98/C35/C58 -> 10.94% | D64: =D18*0.98/D35/D58 -> 18.61% | E64: =E18*0.98/E35/E58 -> 8.11% | F64: =F18*0.98/F35/F58 -> 4.75% | H64: =VLOOKUP($A64,$A$58:$F$65,MATCH($G$58,$A$57:$F$57,0),FALSE) -> 
A65: Gemeinkosten | B65: =B51/B58 -> 52.43% | C65: =C51/C58 -> 78.42% | D65: =D51/D58 -> 51.70% | E65: =E51/E58 -> 36.84% | F65: =F51/F58 -> 39.96% | H65: =VLOOKUP($A65,$A$58:$F$65,MATCH($G$58,$A$57:$F$57,0),FALSE) -> 
A66: Objektleiterkosten | C66: 7% | D66: 5% | E66: 9% | F66: 7% | H66: =VLOOKUP($A66,$A$58:$F$66,MATCH($G$58,$A$57:$F$57,0),FALSE) -> 
A71: Berechnung der Auflösungsabgabe im Gesamtschnitt der Branche (WKO vor Verhandlungen mit der Schiedskommission)
A72: Bruttolohnsumme 2014 | B72: 630,000,000.00
A73: Beschäftigte in RG 2014 | B73: 51,000.00
A74: Fluktuation 40% | B74: 40%
A75: Aufgelöste DV | B75: =B73*B74 -> 20,400.00
A76: abgabenpflichtig (70%) | B76: 70%
A77: davon abgabenpflichtig | B77: =B75*0.7 -> 14,280.00
A78: Auflöstungsabgabe | B78: =B77*C78 -> 460.65 | C78: ='1. Österreichische Werte'!B43 -> € 0.03
A79: Auflösungsabgabe in % | B79: =B78/B72 -> 0.00%
